bitfinex/quotes_ETHUSD_20240530
["timestamp","ask_amount","ask_price","bid_price","bid_amount"]
[1717053997470,1.94285076,3742.1,3742.0,0.0044183]
[1717053997670,2.52121564,3742.1,3742.0,0.0044183]
[1717053998208,2.52110542,3742.1,3742.0,0.0044183]
[1717053998872,0.57825466,3742.1,3742.0,0.0044183]
[1717053999069,0.57825466,3742.1,3742.0,2.4555183]
[1717053999335,1.60335,3742.2,3742.0,2.70107013]
[1717054001167,1.60335,3742.2,3742.0,2.4555183]
[1717054003830,1.60335,3742.2,3742.0,0.0044183]
[1717054004524,1.94276607,3742.1,3742.0,0.0044183]
[1717054004720,2.52102073,3742.1,3742.0,0.0044183]
[1717054004924,2.52102073,3742.1,3741.5,2.33170863]
[1717054005127,0.57825466,3742.1,3741.6,0.22077086]
[1717054005326,1.60335,3742.2,3741.6,0.22077086]
[1717054005541,1.94278904,3742.1,3741.6,0.22077086]
[1717054006056,2.5210437,3742.1,3741.6,0.22077086]
[1717054006359,0.57825466,3742.1,3741.6,0.22077086]
[1717054006716,1.60335,3742.2,3741.6,0.22077086]
[1717054006946,1.94279644,3742.1,3741.5,1.29789222]
[1717054007252,2.5210511,3742.1,3741.5,1.29789222]
[1717054007555,1.94279644,3742.0,3741.5,1.29789222]
[1717054007753,0.57825466,3742.1,3741.5,1.29789222]
[1717054008057,1.60335,3742.2,3741.5,3.78919222]
[1717054008253,1.9427982,3742.1,3741.6,0.37891922]
[1717054008553,2.5210454,3742.1,3741.6,0.37891922]
[1717054008738,0.5782472,3742.1,3741.6,0.37891922]
[1717054009079,1.60335,3742.2,3741.5,3.78919222]
[1717054009216,1.94279521,3742.1,3741.5,3.69349222]
[1717054009417,1.94279521,3742.1,3741.0,2.2724]
[1717054009723,1.60345,3742.0,3741.0,2.2724]
[1717054010070,1.94279521,3741.9,3740.5,2.4751]
[1717054010214,2.52104241,3741.9,3740.6,1.70581122]
[1717054010415,1.94279521,3741.8,3740.6,1.70581122]
[1717054014861,1.94279521,3741.8,3740.6,0.407919]
[1717054021005,4.94279521,3741.8,3740.5,2.4751]
[1717054021191,2.52108337,3741.7,3740.4,1.60409]
[1717054021363,4.94279521,3741.6,3740.4,2.90198222]
[1717054021569,2.52108337,3741.5,3740.4,2.90198222]
[1717054021770,1.94279521,3741.4,3740.5,0.29019822]
[1717054022792,1.94279521,3741.4,3740.5,0.04019822]
[1717054027206,2.52113974,3741.4,3740.5,0.04019822]
[1717054027497,2.52113974,3741.4,3740.4,1.60409]
[1717054027498,1.94279521,3741.3,3740.4,1.60409]
[1717054028518,0.57834453,3741.4,3740.4,1.60409]
[1717054028721,1.94325251,3741.3,3740.4,1.60409]
[1717054031817,1.94325251,3741.3,3740.4,2.90198222]
[1717054032417,1.94325251,3741.3,3740.5,1.29789222]
[1717054032734,1.94325251,3741.3,3740.6,0.29019822]
[1717054032900,1.94325251,3741.3,3740.6,1.58809044]
[1717054033827,1.60376,3741.2,3739.9,1.6043]
[1717054034034,1.94325251,3741.1,3740.1,1.60422]
[1717054034346,1.94325251,3741.1,3740.2,1.29789222]
[1717054034537,2.5216051,3741.1,3740.3,0.29021122]
[1717054034714,1.94325251,3741.0,3740.4,1.29789222]
[1717054035713,0.57835259,3741.1,3740.4,1.29789222]
[1717054035909,0.5783376,3741.5,3740.4,1.29789222]
[1717054036141,1.60353,3741.8,3740.5,0.15881034]
[1717054036142,1.94320872,3741.4,3740.5,0.15881034]
[1717054036352,1.94320872,3741.3,3740.7,2.3515]
[1717054036614,1.94320872,3741.2,3740.7,3.64939222]
[1717054036813,0.5783376,3741.7,3740.7,3.64939222]
[1717054037028,1.94303462,3741.6,3740.7,3.64939222]
[1717054037249,1.94303462,3741.5,3740.8,0.54122326]
[1717054037433,1.94303462,3741.4,3740.8,0.54122326]
[1717054037633,0.5783376,3741.7,3740.8,0.54122326]
[1717054037817,1.94304547,3741.6,3740.8,0.54122326]
[1717054038021,1.94304547,3741.5,3740.8,0.54122326]
[1717054038244,1.94304547,3741.4,3740.8,0.54122326]
[1717054038447,0.5783376,3741.7,3740.8,0.54122326]
[1717054038634,1.94303508,3741.6,3740.8,0.54122326]
[1717054038833,1.94303508,3741.5,3740.8,0.54122326]
[1717054039054,1.94303508,3741.4,3740.8,0.54122326]
[1717054039360,0.5783376,3741.7,3740.8,0.54122326]
[1717054039560,1.94304793,3741.6,3740.8,0.54122326]
[1717054039724,1.94304793,3741.5,3740.8,0.54122326]
[1717054039926,1.94304793,3741.4,3740.8,0.54122326]
[1717054040126,0.5783376,3741.7,3740.9,0.41906155]
[1717054040360,1.60353,3741.8,3740.9,0.41906155]
[1717054040361,1.94300698,3741.6,3740.9,0.41906155]
[1717054040519,1.94300698,3741.5,3740.9,0.41906155]
[1717054040746,1.94300698,3741.4,3740.9,1.71695377]
[1717054041088,0.5783376,3741.7,3740.9,1.71695377]
[1717054041386,1.94300273,3741.6,3741.0,0.4609677]
[1717054041582,1.94300273,3741.5,3741.0,0.4609677]
[1717054041788,0.5783376,3741.7,3741.0,0.4609677]
[1717054041987,1.9429191,3741.6,3741.0,0.4609677]
[1717054042186,1.9429191,3741.5,3741.1,0.23535376]
[1717054042491,0.5783376,3742.1,3741.1,0.28880826]
[1717054042665,1.94291291,3742.0,3741.1,0.0534545]
[1717054043050,1.94291291,3741.9,3741.1,0.0534545]
[1717054043265,1.94291291,3741.8,3741.1,0.0534545]
[1717054043460,1.94291291,3741.7,3741.1,0.0534545]
[1717054043751,1.94291291,3741.6,3741.0,0.4609677]
[1717054043949,1.94291291,3741.5,3741.1,0.17588599]
[1717054044246,0.5783376,3742.2,3741.1,0.2293405]
[1717054044485,1.94290029,3742.1,3741.1,0.05345451]
[1717054044672,1.94290029,3742.0,3741.1,0.05345451]
[1717054044862,1.94290029,3741.9,3741.1,0.05345451]
[1717054045057,1.94290029,3741.8,3741.1,0.05345451]
[1717054045262,1.94290029,3741.7,3741.1,0.05345451]
[1717054045568,1.94290029,3741.6,3741.1,0.05345451]
[1717054045786,0.57824556,3742.1,3741.1,0.05345451]
[1717054046010,2.46102937,3742.0,3741.1,0.05345451]
[1717054046305,1.94287381,3741.9,3741.1,0.05345451]
[1717054046601,2.75887381,3741.9,3741.1,0.05345451]
[1717054046765,1.94287381,3741.8,3741.2,1.29789222]
[1717054046963,1.94287381,3741.8,3741.3,1.65716187]
[1717054047201,1.94287381,3742.1,3741.5,1.60359]
[1717054047489,1.94287381,3742.0,3741.6,2.11389222]
[1717054047693,1.60309,3742.8,3741.6,2.11389222]
[1717054047694,1.39424556,3742.6,3741.7,0.05344597]
[1717054048029,1.94255641,3742.5,3741.7,0.05344597]
[1717054048216,2.52080197,3742.5,3741.7,0.49158333]
[1717054048518,1.94255641,3742.4,3741.8,0.0534445]
[1717054048818,0.57824556,3742.7,3741.8,0.0534445]
[1717054048980,1.94246677,3742.6,3741.8,0.0534445]
[1717054049180,1.94246677,3742.5,3741.8,0.0534445]
[1717054049397,1.94246677,3742.4,3741.8,0.0534445]
[1717054049603,0.57824556,3742.7,3741.8,0.0534445]
[1717054049804,1.94245897,3742.6,3741.8,0.0534445]
[1717054050025,2.18133556,3742.8,3741.8,0.0534445]
[1717054050026,1.94245897,3742.5,3741.8,0.0534445]
[1717054050178,0.57824556,3742.7,3741.8,0.0534445]
[1717054050382,1.94245939,3742.6,3741.8,0.0534445]
[1717054050583,1.94245939,3742.5,3741.8,0.0534445]
[1717054050814,0.57811631,3742.7,3741.8,0.0534445]
[1717054051013,1.94245589,3742.6,3741.8,0.0534445]
[1717054051210,1.94245589,3742.5,3741.8,0.0534445]
[1717054051417,0.57811631,3742.7,3741.8,0.0534445]
[1717054051725,1.94245163,3742.6,3741.8,0.05344452]
[1717054052033,1.94245163,3742.6,3741.6,1.29789222]
[1717054052324,1.94245163,3742.6,3741.6,1.35133674]
[1717054052690,1.94245163,3742.6,3741.9,1.60342]
[1717054052891,0.57811631,3743.2,3742.0,1.29789222]
[1717054052892,1.94245163,3742.5,3742.0,1.29789222]
[1717054053223,0.57811631,3743.0,3742.1,0.52094122]
[1717054053519,1.94240117,3742.9,3742.2,1.29789222]
[1717054054208,1.94240117,3742.8,3742.2,1.29789222]
[1717054054381,0.57811631,3743.1,3742.2,1.29789222]
[1717054054581,1.94231777,3743.0,3742.2,1.29789222]
[1717054054781,1.94231777,3743.0,3742.3,0.18188334]
[1717054055015,1.94231777,3742.9,3742.4,1.29789222]
[1717054055200,3.0,3743.1,3742.4,1.29789222]
[1717054055383,1.94229596,3743.0,3742.4,1.29789222]
[1717054055584,0.57806,3743.2,3742.3,0.18188334]
[1717054055809,1.60287,3743.3,3742.3,0.18188334]
[1717054055810,1.94231617,3743.1,3742.3,1.29789222]
[1717054056147,0.57806,3743.2,3742.3,1.29789222]
[1717054056348,1.60287,3743.3,3742.3,1.29789222]
[1717054057445,1.60287,3743.3,3742.4,1.29789222]
[1717054059741,0.57804878,3743.5,3742.4,1.29789222]
[1717054059949,0.57804878,3743.5,3742.5,0.29011522]
[1717054060150,0.57804878,3743.5,3742.6,1.29789222]
[1717054060446,0.57802892,3743.6,3742.7,2.4101]
[1717054060659,2.18068892,3743.8,3742.7,2.4101]
[1717054066554,1.60266,3743.8,3742.7,2.4101]
[1717054066756,2.18069642,3743.8,3742.7,2.68012152]
[1717054068363,2.18069284,3743.8,3742.7,2.68012152]
[1717054069127,2.18069284,3743.8,3742.7,0.27002152]
[1717054069336,1.60266,3743.8,3742.5,0.29011522]
[1717054069522,1.60266,3743.8,3742.6,1.29789222]
[1717054070415,0.815,3743.5,3742.6,1.29789222]
[1717054070611,1.60266,3743.8,3742.6,1.29789222]
[1717054070815,0.815,3743.6,3742.7,2.4698]
[1717054071118,0.815,3743.6,3742.8,0.48728074]
[1717054073656,0.815,3743.4,3742.9,1.29789222]
[1717054073920,0.815,3743.6,3742.9,1.29789222]
[1717054074239,1.60266,3743.8,3742.9,1.29789222]
[1717054074434,0.815,3743.5,3742.9,1.29789222]
[1717054074766,1.60266,3743.8,3743.0,0.5858063]
[1717054074963,0.815,3743.6,3743.0,0.5858063]
[1717054077436,0.815,3743.7,3743.0,0.5858063]
[1717054078937,2.41766,3743.8,3743.0,0.5858063]
[1717054079133,2.41766,3743.8,3743.1,0.23709793]
[1717054079438,2.99562777,3743.8,3743.1,0.23709793]
[1717054079782,0.57796777,3743.7,3743.1,0.23709793]
[1717054079934,2.41766,3743.8,3743.1,0.23709793]
[1717054080337,0.815,3743.7,3743.1,0.23709793]
[1717054080539,1.60266,3743.8,3743.2,0.21207965]
[1717054080874,2.41766,3743.8,3743.2,0.21207965]
[1717054081175,1.60266,3743.8,3743.2,0.21207965]
[1717054081677,0.815,3744.0,3743.3,2.4214]
[1717054081875,0.815,3744.0,3743.3,2.7433286]
[1717054083975,0.815,3743.9,3743.3,2.7433286]
[1717054084139,1.60245,3744.3,3743.3,2.7433286]
[1717054084672,0.815,3743.9,3743.3,2.7433286]
[1717054086358,0.765,3743.9,3743.3,2.7433286]
[1717054086701,0.765,3743.9,3743.4,0.29554083]
[1717054087053,0.765,3743.9,3743.2,0.21207965]
[1717054088402,0.815,3743.7,3743.2,0.21207965]
[1717054090606,2.1804005,3744.3,3743.2,0.21207965]
[1717054090775,0.815,3743.9,3743.2,0.21207965]
[1717054094947,2.1804005,3744.3,3743.2,0.21207965]
[1717054095259,0.815,3744.0,3743.3,0.16663121]
[1717054096662,0.815,3744.0,3743.4,2.4338]
[1717054097759,2.1804005,3744.3,3743.4,3.73169222]
[1717054098056,0.5779505,3744.3,3743.4,2.4338]
[1717054098358,1.3929505,3744.3,3743.5,0.44153909]
[1717054098558,0.5779505,3744.6,3743.5,0.44153909]
[1717054098765,0.815,3744.3,3743.5,0.44153909]
[1717054099166,0.815,3744.1,3743.5,0.44153909]
[1717054099341,0.815,3744.1,3743.6,0.30419703]
[1717054099544,0.815,3744.3,3743.6,0.30419703]
[1717054100431,0.5779505,3744.4,3743.6,0.30419703]
[1717054100633,0.815,3744.3,3743.6,0.30419703]
[1717054101374,0.5779505,3744.3,3743.6,0.30419703]
[1717054101557,0.815,3744.3,3743.7,0.31795361]
[1717054101932,1.60231,3744.6,3743.7,0.31795361]
[1717054102130,0.815,3744.3,3743.7,0.31795361]
[1717054102580,0.815,3744.4,3743.7,0.31795361]
[1717054103530,1.3928944,3744.4,3743.7,0.31795361]
[1717054104677,0.5778944,3744.4,3743.7,0.31795361]
[1717054104848,1.3928944,3744.4,3743.7,0.31795361]
[1717054105052,0.815,3744.4,3743.7,0.31795361]
[1717054105245,0.5778944,3744.5,3743.7,0.31795361]
[1717054105590,0.815,3744.3,3743.7,0.31795361]
[1717054108585,0.815,3744.1,3743.5,0.44153909]
[1717054109141,0.815,3744.1,3743.5,1.73943131]
[1717054109341,0.815,3744.2,3743.6,0.05341946]
[1717054109783,0.815,3744.2,3743.5,1.73943131]
[1717054110743,0.815,3744.2,3743.5,0.44153909]
[1717054110943,0.815,3744.2,3743.6,0.28753391]
[1717054111787,2.1802044,3744.6,3743.6,0.28753391]
[1717054112082,2.1802044,3744.6,3743.5,0.44153909]
[1717054112390,0.815,3744.3,3743.5,1.79284909]
[1717054113106,0.815,3744.1,3743.5,0.44153909]
[1717054114745,0.815,3744.2,3743.5,1.73943131]
[1717054114946,0.815,3744.2,3743.6,0.05341778]
[1717054115184,0.815,3744.2,3743.7,0.42266491]
[1717054115967,1.94163225,3744.1,3743.7,0.42266491]
[1717054116483,1.94163225,3744.1,3743.7,1.72055713]
[1717054116690,1.94163225,3744.0,3743.7,1.72055713]
[1717054116865,0.57787992,3744.1,3743.7,1.72055713]
[1717054117069,1.94159417,3744.0,3743.8,0.21620962]
[1717054117364,0.57787992,3744.1,3743.8,0.21620962]
[1717054117573,1.94159602,3744.0,3743.8,0.21620962]
[1717054117752,1.94159602,3743.9,3743.8,0.21620962]
[1717054118149,0.57787992,3744.2,3743.8,0.21620962]
[1717054118472,0.815,3744.3,3743.9,0.19367668]
[1717054118677,1.94162339,3744.2,3743.9,0.19367668]
[1717054118986,2.51950331,3744.2,3744.0,2.4776]
[1717054119186,1.94162339,3744.1,3744.0,2.4776]
[1717054119608,1.94162339,3744.2,3744.0,2.4776]
[1717054120228,1.94162339,3744.2,3744.0,2.91678338]
[1717054120862,1.94162339,3744.2,3743.9,0.19367668]
[1717054121069,1.94162339,3744.2,3743.6,2.4987]
[1717054123003,1.94162339,3744.2,3743.7,1.29789222]
[1717054123509,1.94162339,3744.1,3743.7,1.29789222]
[1717054123802,1.94162339,3744.0,3743.7,1.29789222]
[1717054123964,0.57787992,3744.4,3743.7,1.29789222]
[1717054124164,1.94158813,3744.3,3743.8,0.37965922]
[1717054124365,1.94158813,3744.2,3743.8,0.37965922]
[1717054124613,1.94158813,3744.1,3743.8,0.37965922]
[1717054124818,1.94158813,3744.0,3743.8,0.37965922]
[1717054124991,0.57787992,3744.4,3743.8,0.37965922]
[1717054125194,1.94156076,3744.3,3743.9,0.41762514]
[1717054125388,1.94156076,3744.2,3743.9,0.41762514]
[1717054125696,1.94156076,3744.1,3743.9,0.41762514]
[1717054125915,1.94156076,3744.0,3743.9,0.41762514]
[1717054126111,1.94156076,3744.3,3743.9,0.41762514]
[1717054128997,0.5778647,3744.4,3743.9,0.41762514]
[1717054129533,0.815,3744.5,3743.6,2.4987]
[1717054129717,0.815,3744.5,3743.7,1.29789222]
[1717054131989,0.57785418,3744.9,3743.8,2.4053]
[1717054132191,0.815,3744.5,3743.9,1.35130335]
[1717054132535,0.815,3744.5,3743.9,1.8872349]
[1717054133126,0.815,3744.7,3743.9,1.8872349]
[1717054133630,0.815,3744.7,3743.9,1.83382356]
[1717054134033,0.815,3744.7,3744.0,0.05341117]
[1717054134329,0.815,3744.7,3744.0,1.35130339]
[1717054134507,0.815,3744.7,3744.1,0.42925347]
[1717054134907,0.815,3744.6,3744.1,0.42925347]
[1717054136413,0.57785418,3744.9,3744.1,0.42925347]
[1717054136620,0.815,3744.7,3744.1,0.48266463]
[1717054136797,0.815,3744.7,3744.1,0.42925347]
[1717054136997,0.815,3744.7,3744.2,0.2263077]
[1717054138611,0.57785418,3744.9,3744.2,0.2263077]
[1717054138811,0.815,3744.6,3744.2,0.2263077]
[1717054139421,0.815,3744.6,3744.1,0.42925347]
[1717054144549,2.17995418,3745.1,3744.1,0.42925347]
[1717054144751,0.815,3744.6,3744.1,0.42925347]
[1717054145653,0.57785418,3745.0,3744.1,0.42925347]
[1717054145970,0.815,3744.5,3743.8,2.4053]
[1717054146124,0.815,3744.5,3743.8,3.70319222]
[1717054148419,0.57785418,3745.0,3743.9,1.60258]
[1717054148620,0.815,3744.6,3743.9,1.60258]
[1717054148873,1.94140496,3744.5,3743.9,1.60258]
[1717054149058,1.94140496,3744.5,3744.0,0.53057722]
[1717054149229,2.51925914,3744.5,3744.0,0.53057722]
[1717054149430,1.94140496,3744.4,3744.0,0.53057722]
[1717054150297,0.55,3744.3,3744.0,0.53057722]
[1717054150802,0.55,3744.4,3744.0,0.53057722]
[1717054151094,1.94138632,3744.3,3744.1,0.58363494]
[1717054151297,1.94138632,3744.2,3744.1,0.58363494]
[1717054151695,1.12785418,3744.5,3744.1,0.58363494]
[1717054151992,1.94139778,3744.4,3744.1,0.58363494]
[1717054152569,1.94139778,3744.4,3744.2,2.3721]
[1717054152791,1.94139778,3744.4,3744.3,0.38241471]
[1717054153666,0.55,3744.5,3744.3,0.38241471]
[1717054153867,0.55,3744.7,3744.1,0.58363494]
[1717054154064,1.94138416,3744.6,3744.1,0.63704604]
[1717054154271,0.55,3744.5,3744.1,0.63704604]
[1717054154466,1.94138416,3744.4,3744.3,1.60243]
[1717054154661,1.94138416,3744.5,3744.3,1.60243]
[1717054154866,1.94138416,3744.4,3744.3,1.60243]
[1717054155092,1.94138416,3744.6,3744.3,1.60243]
[1717054155597,1.94138416,3744.5,3744.3,1.60243]
[1717054155802,1.94138416,3744.4,3744.3,1.60243]
[1717054156624,1.94138416,3744.4,3744.3,2.90032222]
[1717054156773,0.815,3744.9,3744.4,2.3705]
[1717054157095,1.94121878,3744.8,3744.4,3.66839222]
[1717054157294,2.51900622,3745.0,3744.4,3.66839222]
[1717054157460,2.49121878,3744.9,3744.5,0.58485379]
[1717054157662,1.94121878,3744.8,3744.5,0.58485379]
[1717054158591,1.94121878,3744.8,3744.6,1.29789222]
[1717054158802,0.815,3745.2,3744.6,1.29789222]
[1717054158975,0.815,3745.2,3744.7,0.4253246]
[1717054159173,0.815,3745.2,3744.8,1.29789222]
[1717054159375,0.57778744,3745.5,3744.8,1.29789222]
[1717054159895,1.365,3745.4,3744.8,1.29789222]
[1717054161363,1.365,3745.4,3744.9,2.2636]
[1717054161562,1.365,3745.4,3744.9,2.66228168]
[1717054164574,0.55,3745.4,3744.9,2.66228168]
[1717054164786,1.60184,3745.7,3744.9,2.66228168]
[1717054164787,1.365,3745.5,3744.9,2.66228168]
[1717054165099,1.365,3745.5,3744.9,0.39868168]
[1717054165100,0.815,3745.3,3744.9,0.39868168]
[1717054165291,0.55,3745.2,3744.9,0.39868168]
[1717054165491,0.55,3745.2,3744.6,2.4334]
[1717054165793,0.55,3745.3,3744.6,3.73129222]
[1717054166104,0.815,3745.2,3744.6,3.73129222]
[1717054166303,0.55,3745.1,3744.6,3.73129222]
[1717054166707,0.55,3745.3,3744.6,3.73129222]
[1717054166879,0.55,3745.3,3744.7,0.37312922]
[1717054169521,1.365,3745.5,3744.7,0.37312922]
[1717054169692,0.815,3745.3,3744.7,0.37312922]
[1717054169897,0.55,3745.2,3744.7,0.37312922]
[1717054171299,0.57771191,3745.6,3744.7,3.27324144]
[1717054171619,0.57771191,3745.9,3744.9,2.4893]
[1717054171785,0.57771191,3745.9,3744.9,3.78719222]
[1717054171984,0.815,3745.7,3745.0,1.29789222]
[1717054172192,0.57770022,3745.9,3745.0,1.29789222]
[1717054172396,0.815,3745.8,3745.0,1.29789222]
[1717054172592,0.57770022,3745.9,3745.1,0.44393564]
[1717054172818,0.815,3745.8,3745.2,1.29789222]
[1717054173191,0.55,3745.7,3745.2,1.29789222]
[1717054173397,0.815,3745.6,3745.2,1.29789222]
[1717054173593,0.55,3745.7,3745.2,1.29789222]
[1717054173822,0.815,3745.7,3745.1,0.44393564]
[1717054174032,0.815,3745.5,3745.1,1.29789222]
[1717054174194,0.815,3745.5,3745.2,1.29789222]
[1717054174586,0.815,3745.7,3745.2,1.29789222]
[1717054175790,0.55,3745.8,3745.3,2.2997]
[1717054176098,1.365,3745.8,3745.3,2.2997]
[1717054176291,4.6016,3746.3,3745.3,2.2997]
[1717054176292,0.57770022,3746.1,3745.4,1.29789222]
[1717054176484,0.57770022,3746.1,3745.3,2.65945922]
[1717054176485,0.55,3745.7,3745.3,2.65945922]
[1717054176729,0.55,3745.8,3745.3,2.65945922]
[1717054177792,0.815,3745.9,3745.4,1.29789222]
[1717054178000,0.815,3746.0,3745.4,1.29789222]
[1717054178203,0.815,3746.0,3745.5,0.39573514]
[1717054178204,0.55,3745.9,3745.5,0.39573514]
[1717054179212,0.57770022,3746.2,3745.5,1.69362736]
[1717054179416,0.815,3746.0,3745.5,1.69362736]
[1717054182109,0.55,3746.1,3745.5,1.69362736]
[1717054182441,0.55,3746.1,3745.6,0.39933274]
[1717054182643,0.55,3746.1,3745.6,1.69722496]
[1717054182944,0.55,3746.1,3745.7,2.3833]
[1717054183775,0.57758712,3746.7,3745.7,3.68119222]
[1717054184071,1.365,3746.6,3745.8,1.78744472]
[1717054184229,0.815,3746.5,3745.8,1.78744472]
[1717054184435,0.55,3746.4,3745.8,1.78744472]
[1717054185731,0.815,3746.5,3745.8,1.78744472]
[1717054185932,0.55,3746.4,3745.8,1.78744472]
[1717054186128,0.55,3746.4,3745.9,0.57726147]
[1717054186375,0.55,3746.4,3745.9,1.87515369]
[1717054187840,1.365,3746.6,3745.9,1.87515369]
[1717054188776,0.55,3746.6,3745.9,1.87515369]
[1717054188937,1.365,3746.6,3745.9,1.87515369]
[1717054189138,1.365,3746.6,3746.0,0.47480062]
[1717054191202,0.815,3746.4,3746.0,0.47480062]
[1717054193992,1.365,3746.6,3746.0,0.47480062]
[1717054194375,0.815,3746.4,3746.0,0.47480062]
[1717054195504,1.365,3746.6,3746.0,0.47480062]
[1717054195702,1.365,3746.6,3746.1,0.23499543]
[1717054196865,0.815,3746.4,3746.1,0.23499543]
[1717054197267,0.55,3746.6,3746.1,0.23499543]
[1717054197486,1.365,3746.6,3746.1,0.23499543]
[1717054197969,1.365,3746.6,3745.6,1.60187]
[1717054197970,0.815,3746.4,3745.6,1.60187]
[1717054198177,0.55,3746.3,3745.6,1.60187]
[1717054198389,0.815,3746.2,3745.6,1.60187]
[1717054198622,0.55,3746.1,3745.6,1.60187]
[1717054198813,0.815,3746.2,3745.6,2.02360653]
[1717054199013,0.55,3746.1,3745.6,2.02360653]
[1717054199903,0.55,3746.1,3745.6,3.32149875]
[1717054200123,1.365,3746.4,3745.7,2.4841]
[1717054200325,0.55,3746.4,3745.8,1.29789222]
[1717054200532,0.55,3746.6,3745.9,0.58055987]
[1717054200700,0.55,3746.7,3745.9,1.87845209]
[1717054201033,0.815,3746.6,3745.9,1.87845209]
[1717054201234,0.55,3746.5,3746.0,0.05338355]
[1717054201441,0.55,3746.5,3746.1,0.19318356]
[1717054203137,0.815,3746.4,3745.9,0.58055987]
[1717054203349,0.55,3746.3,3745.7,2.4841]
[1717054203718,0.55,3746.3,3745.6,2.02360653]
[1717054204046,0.815,3746.2,3745.5,2.3536]
[1717054204216,0.815,3745.9,3745.5,2.3536]
[1717054204544,0.55,3745.8,3745.5,2.3536]
[1717054205204,0.55,3746.0,3745.5,2.3536]
[1717054205608,0.55,3746.1,3745.5,2.3536]
[1717054205844,0.815,3746.0,3745.6,0.23536]
[1717054206192,0.55,3745.9,3745.6,0.23536]
[1717054206529,0.55,3746.1,3745.6,0.23536]
[1717054209849,0.55,3746.2,3745.6,0.23536]
[1717054210051,0.55,3746.2,3745.7,0.419089]
[1717054210965,0.815,3745.9,3745.4,1.60193]
[1717054211170,0.55,3745.8,3745.4,1.60193]
[1717054211563,0.55,3745.8,3745.2,2.4063]
[1717054211871,0.815,3745.7,3744.9,1.60216]
[1717054212163,0.55,3745.6,3744.9,1.60216]
[1717054212469,0.55,3745.6,3744.9,2.000456]
[1717054212951,0.815,3745.5,3744.9,2.000456]
[1717054213170,0.55,3745.4,3744.9,2.000456]
[1717054213470,0.815,3745.2,3744.9,1.60216]
[1717054213633,0.55,3745.1,3744.9,1.60216]
[1717054214590,0.55,3745.1,3744.4,1.60238]
[1717054215805,0.55,3745.1,3744.6,1.60227]
[1717054215956,1.365,3745.3,3744.7,2.54271622]
[1717054216652,0.55,3745.3,3744.7,2.54271622]
[1717054216854,1.365,3745.3,3744.7,2.54271622]
[1717054217286,0.815,3745.1,3744.7,0.29001622]
[1717054217508,0.55,3745.0,3744.7,0.29001622]
[1717054219350,0.55,3745.0,3744.8,0.31901784]
[1717054220850,0.815,3745.2,3744.6,1.60227]
[1717054221162,0.815,3745.0,3744.6,1.60227]
[1717054221451,0.55,3744.9,3744.6,1.60227]
[1717054222041,0.55,3744.9,3744.0,1.60253]
[1717054222343,0.55,3744.9,3744.0,2.90042222]
[1717054222504,0.815,3744.8,3744.0,2.90042222]
[1717054222705,0.55,3744.7,3744.1,0.62147222]
[1717054223921,0.815,3744.6,3744.0,1.60253]
[1717054224121,0.55,3744.5,3744.0,1.60253]
[1717054228653,0.815,3744.4,3744.0,1.60253]
[1717054228862,0.55,3744.3,3744.0,1.60253]
[1717054229066,0.55,3744.3,3743.5,4.00915]
[1717054229272,0.55,3744.3,3743.6,0.400915]
[1717054229443,0.815,3744.2,3743.6,0.400915]
[1717054229646,0.55,3744.1,3743.6,0.400915]
[1717054230171,0.55,3744.1,3743.5,1.60275]
[1717054230744,0.55,3744.3,3743.5,1.60275]
[1717054232372,0.815,3744.2,3743.5,1.60275]
[1717054232588,0.55,3744.1,3743.5,1.60275]
[1717054233665,0.55,3744.1,3743.2,0.815]
[1717054233971,3.0324,3744.1,3743.3,0.471647]
[1717054234787,0.815,3744.0,3743.3,0.471647]
[1717054234939,0.55,3743.9,3743.3,0.471647]
[1717054235739,2.4824,3744.1,3743.3,0.471647]
[1717054235740,1.365,3744.0,3743.3,0.471647]
[1717054238785,1.365,3744.0,3743.1,2.4759]
[1717054240080,0.815,3743.8,3743.0,1.60297]
[1717054240391,0.55,3743.7,3743.0,1.60297]
[1717054249144,0.815,3743.8,3743.0,1.60297]
[1717054249446,0.55,3743.7,3743.0,1.60297]
[1717054249755,0.55,3743.7,3743.1,0.541797]
[1717054249977,0.55,3743.7,3743.0,1.60297]
[1717054250279,0.815,3743.7,3743.0,1.60297]
[1717054250468,0.55,3743.6,3743.0,1.60297]
[1717054251545,0.55,3743.9,3743.0,1.60297]
[1717054251977,0.815,3743.8,3743.0,1.60297]
[1717054252197,0.55,3743.7,3743.1,0.241797]
[1717054252861,0.815,3743.9,3743.1,0.241797]
[1717054253056,0.55,3743.8,3743.1,0.241797]
[1717054255269,0.55,3743.9,3743.1,0.241797]
[1717054255594,1.365,3743.9,3743.1,0.241797]
[1717054255891,1.365,3743.9,3743.2,0.2659767]
[1717054256446,0.55,3743.9,3743.2,0.2659767]
[1717054256951,0.815,3743.8,3743.2,0.2659767]
[1717054257174,0.55,3743.7,3743.2,0.2659767]
[1717054258920,0.55,3743.9,3743.2,0.2659767]
[1717054259089,0.55,3743.9,3743.3,0.18689467]
[1717054260686,0.55,3743.9,3743.3,2.61639467]
[1717054264507,0.55,3743.9,3743.3,2.4295]
[1717054267668,0.55,3744.1,3743.3,2.4295]
[1717054271185,0.815,3744.0,3743.3,2.4295]
[1717054271388,0.55,3743.9,3743.3,2.4295]
[1717054289508,0.815,3744.1,3743.3,2.4295]
[1717054289714,0.55,3744.0,3743.3,2.4295]
[1717054291033,0.55,3744.0,3743.1,2.324]
[1717054291437,0.57792255,3744.2,3743.5,2.41777]
[1717054291609,0.815,3744.6,3743.7,2.324]
[1717054291814,0.815,3744.6,3743.9,2.3296]
[1717054292523,0.815,3744.4,3743.9,2.3296]
[1717054292947,0.815,3744.6,3743.9,2.69234922]
[1717054293140,0.815,3744.4,3743.9,2.69234922]
[1717054293329,0.815,3744.4,3743.9,2.3296]
[1717054294311,0.57792255,3744.8,3743.9,2.3296]
[1717054294511,0.815,3744.5,3743.9,2.3296]
[1717054294712,0.55,3744.4,3743.9,2.3296]
[1717054295056,0.55,3744.4,3743.9,2.69234922]